fUSD/lending_fUSD_20250804
["ID","MTS","AMOUNT","RATE_DAILY","PERIOD"]
[377312149,1754334633251,-150.99,0.00049154,2]
[377312151,1754334633262,-1000.0,0.00049154,30]
[377312152,1754334633273,-1000.0,0.00049154,30]
[377312153,1754334633283,-1000.0,0.00049154,30]
[377312154,1754334633293,-1000.0,0.00049154,30]
[377312155,1754334633303,-1000.0,0.00049154,30]
[377312156,1754334633313,-1000.0,0.00049154,30]
[377312157,1754334633323,-1000.0,0.00049154,30]
[377312158,1754334633334,-1000.0,0.00049154,30]
[377312159,1754334633345,-1000.0,0.00049154,30]
[377312160,1754334633356,-814.0,0.00049154,30]
[377312161,1754334633367,-150.0,0.00049173,3]
[377312162,1754334633378,-507.0,0.00049196,10]
[377312163,1754334633389,-150.43561814,0.00049248,120]
[377312164,1754334633400,-150.43561814,0.00049345,120]
[377312165,1754334633410,-150.0,0.00049364,2]
[377312166,1754334633421,-6671.88457547,0.00049369,15]
[377312167,1754334633431,-150.43561814,0.00049443,120]
[377312168,1754334633441,-151.0,0.000495,120]
[377312169,1754334633452,-611.45952434,0.00049533,2]
[377312170,1754334633462,-6671.88457547,0.00049685,15]
[377312171,1754334633472,-507.0,0.00049687,10]
[377312172,1754334633483,-779.31115847,0.00049701,2]
[377312173,1754334633492,-466.93,0.00049741,30]
[377312174,1754334633502,-818.03,0.00049741,30]
[377312175,1754334633513,-466.93,0.00049741,30]
[377312176,1754334633532,-466.93,0.00049741,30]
[377312177,1754334633542,-1500.0,0.0004986,120]
[377312178,1754334633554,-947.1627926,0.0004987,2]
[377312179,1754334633565,-500.0,0.00049891,120]
[377312180,1754334633575,-257.6046725,0.00049903,10]
[377312181,1754334633586,-2312.16775349,0.0005,5]
[377312182,1754334633598,-802.26,0.0005,120]
[377312183,1754334633609,-153.85,0.0005,120]
[377312184,1754334633620,-1000.0,0.0005,120]
[377312185,1754334633630,-6671.88457547,0.0005,15]
[377312186,1754334633641,-1115.01442673,0.00050038,2]
[377312187,1754334633652,-507.0,0.00050178,20]
[377312188,1754334633662,-1282.86606086,0.00050207,2]
[377312189,1754334633672,-209.1,0.00050251,120]
[377312190,1754334633683,-802.26,0.00050273,120]
[377312191,1754334633694,-1279.43532096,0.00050315,15]
[377312192,1754334633708,-1611.37707169,0.00050315,15]
[377312193,1754334633734,-3781.07218282,0.00050315,15]
[377312194,1754334633745,-445.16,0.00050317,120]
[377312195,1754334633755,-1076.77911091,0.00050375,2]
[377312196,1754334633784,-373.93858409,0.00050375,2]
[377312197,1754334633795,-151.0,0.000504,120]
[377312198,1754334633805,-1238.54891919,0.0005044,51]
[377312199,1754334633832,-3376.5,0.0005044,51]
[377312200,1754334633844,-380.12415017,0.0005044,51]
[377312201,1754334633865,-499.09994064,0.0005044,51]
[377312202,1754334633876,-876.34802226,0.00050489,120]
[377312203,1754334633886,-800.0,0.000505,18]
[377312204,1754334633896,-1618.56932913,0.00050544,2]
[377312205,1754334633906,-802.26,0.00050547,120]
[377312206,1754334633918,-1700.0,0.000506,18]
[377312207,1754334633934,-6671.88457547,0.00050631,15]
[377312208,1754334633945,-42.38872064,0.00050669,20]
[377312209,1754334633958,-464.61127936,0.00050669,20]
[377312210,1754334633970,-150.0,0.00050685,120]
[377312211,1754334633980,-202.10370459,0.00050685,120]
[377312212,1754334633991,-150.0,0.00050685,120]
[377312213,1754334634001,-150.27721996,0.00050685,120]
[377312214,1754334634012,-150.0,0.00050685,120]
[377312215,1754334634025,-150.0,0.00050685,120]
[377312216,1754334634035,-150.0,0.00050685,120]
[377312217,1754334634046,-500.0,0.00050685,120]
[377312218,1754334634057,-500.0,0.00050685,120]
[377312219,1754334634067,-150.0,0.00050685,120]
[377312220,1754334634078,-150.0,0.00050685,2]
[377312221,1754334634089,-500.0,0.00050685,120]
[377312222,1754334634099,-500.0,0.00050685,120]
[377312223,1754334634110,-150.0,0.00050685,60]
[377312224,1754334634121,-166.77888788,0.00050691,28]
[377312225,1754334634132,-2000.0,0.000507,2]
[377312226,1754334634143,-975.0,0.000507,2]
[377312227,1754334634154,-2249.79084435,0.000507,18]
[377312228,1754334634167,-350.20915565,0.000507,18]
[377312229,1754334634178,-1786.42096326,0.00050712,2]
[377312230,1754334634189,-927.4425,0.00050712,2]
[377312231,1754334634199,-350.0,0.0005075,2]
[377312232,1754334634210,-200.0,0.00050757,120]
[377312233,1754334634220,-3315.05747807,0.0005077,15]
[377312234,1754334634233,-1057.76628346,0.0005077,15]
[377312235,1754334634276,-801.64195998,0.0005077,15]
[377312243,1754334638305,-888.0,0.000471,3]
[377312244,1754334638315,-349.58092356,0.00049124,2]
[377312246,1754334638327,-506.28132779,0.00049124,2]
[377312279,1754334639370,-20563.13774865,0.00049124,2]
[377312280,1754334639379,-150.43561814,0.0004954,120]
[377312281,1754334639388,-150.43561814,0.00049637,120]
[377312282,1754334639398,-11870.05113433,0.00049897,120]
[377312283,1754334640301,-5628.5,0.00049897,120]
[377312284,1754334640324,-28682.25546837,0.00049897,120]
[377312285,1754334640335,-15157.14135894,0.0005077,15]
[377312286,1754334640345,-12475.61917272,0.0005077,2]
[377312287,1754334640375,-2443.45112728,0.0005077,2]
[377312289,1754334640384,-500.0,0.00050773,10]
[377312290,1754334640394,-292.86622901,0.00050773,29]
[377312291,1754334640403,-5000.0,0.00050781,120]
[377312292,1754334640413,-200.5639,0.00050781,2]
[377312293,1754334640422,-8484.0848,0.00050781,120]
[377312294,1754334640432,-485.87511006,0.00050788,41]
[377312295,1754334640441,-6091.4922,0.00050791,2]
[377312296,1754334640451,-20417.08385359,0.00050791,120]
[377312298,1754334640563,-5217.61036527,0.00050791,120]
[377312299,1754334640722,-0.02634878,0.00050791,120]
[377312300,1754334640869,-242.5301439,0.00050791,120]
[377312301,1754334640884,-3151.80128521,0.00050791,120]
[377312303,1754334642934,-150.43561814,0.00049734,120]
[377312304,1754334642945,-3321.05552672,0.00050791,120]
[377312305,1754334643218,-1117.11163608,0.00050791,120]
[377312321,1754334645950,-1178.15,0.00049822,120]
[377312326,1754334646015,-2693.22065124,0.00049822,120]
[377312333,1754334646127,-18269.28230788,0.00049822,120]
[377312334,1754334646138,-460.21433728,0.00049822,120]
[377312335,1754334646160,-292.86622899,0.00050782,29]
[377312336,1754334646172,-30222.7576767,0.00050791,120]
[377312337,1754334646191,-25198.02316375,0.00050791,120]
[377312338,1754334646203,-2036.48539236,0.00050791,120]
[377312339,1754334646214,-3400.0,0.000508,18]
[377312340,1754334646226,-802.26,0.00050821,120]
[377312341,1754334646239,-2036.48539235,0.00050846,120]
[377312342,1754334646251,-227.90459211,0.0005086,2]
[377312343,1754334646263,-371229.13927657,0.00050865,120]
[377312358,1754334711759,155.76,0.00013699,2]
[377312360,1754334758482,878.23165471,0.0003013,120]
[377312361,1754334760693,701.0,0.0003013,120]
[377312364,1754334830558,747.0,0.0003013,120]
[377312384,1754335507961,113332.16708092,0.00019,2]
[377312386,1754335537688,9773.60677919,9e-05,2]
[377312388,1754335558392,-160.59,0.00025,2]
[377312389,1754335560730,-41.84052867,0.00025,2]
[377312408,1754335619455,2916.49761706,0.00015,14]
[377312434,1754335659954,15648.14154276,0.00018,2]
[377312436,1754335675399,5664.69285909,0.00013,15]
[377312445,1754335720605,8244.47359605,0.000151,2]
[377312461,1754335806427,-220.20973364,0.00024,5]
[377312462,1754335808997,-194.31927988,0.00024,5]
[377312463,1754335813532,-151.33,0.00024,5]
[377312464,1754335815205,-344.14673869,0.00024,5]
[377312471,1754335832267,-1271.79926266,0.00024,5]
[377312472,1754335832378,-1134.44498513,0.00024,5]
[377312473,1754335832389,-250.0,0.000264,2]
[377312474,1754335832400,-204.15947164,0.000289,2]
[377312475,1754335832412,-1497.78398795,0.00029,2]
[377312476,1754335832422,-150.43561814,0.0002901,2]
[377312477,1754335832433,-765.0,0.00029089,2]
[377312478,1754335832443,-39047.69785393,0.0002909,2]
[377312513,1754335838033,-1850.526212,0.0002909,2]
[377312554,1754335839007,-1888.0,0.0002909,2]
[377312555,1754335839023,-676.28000001,0.0002909,2]
[377312556,1754335840141,-6585.0,0.0002909,2]
[377312557,1754335840153,-6251.6,0.0002909,2]
[377312558,1754335840165,-8288.15001,0.0002909,2]
[377312559,1754335840252,-7798.66994,0.0002909,2]
[377312560,1754335840267,-2248.7976,0.0002909,2]
[377312561,1754335840356,-1841.77542667,0.0002909,2]
[377312566,1754335843106,-277.540002,0.0002909,2]
[377312567,1754335843127,-843.75,0.0002909,2]
[377312568,1754335843247,-57.03070069,0.0002909,2]
[377312569,1754335843272,-6441.12891357,0.0002909,2]
[377312592,1754335846205,-3776.0,0.0002909,2]
[377312593,1754335846449,-540.25766701,0.0002909,2]
[377312594,1754335846520,-21563.12604966,0.0002909,2]
[377312595,1754335846549,-2302.78084,0.0002909,2]
[377312608,1754336098274,157.24,0.00013699,2]
[377312609,1754336099016,-157.24,0.00021918,2]
[377312612,1754336167088,663.60514463,0.000301,120]
[377312614,1754336203732,401.09453474,0.0003,120]
[377312617,1754336248756,267.3963565,0.0003,120]
[377312618,1754336293709,178.26423766,0.0003,120]
[377312622,1754336338575,178.26423767,0.0003,120]
[377312748,1754336854608,-344.147,0.00025,2]
[377312750,1754336964643,-5033.858298,0.00025764,2]
[377312760,1754337036763,-36091.85013104,0.00025764,2]
[377312761,1754337036777,-1000.0,0.00025764,2]
[377312762,1754337036910,-3395.81572436,0.00025764,2]
[377312807,1754337038270,-395.03226444,0.00025764,2]
[377312808,1754337038284,-1843.51200398,0.00025764,2]
[377312809,1754337038296,-520.0191738,0.00025764,2]
[377312810,1754337038310,-578.06804933,0.00025764,2]
[377312811,1754337038480,-28386.92381195,0.00025764,2]
[377312812,1754337038491,-5302.8862796,0.00025764,2]
[377312813,1754337038502,-103979.6722499,0.00025764,2]
[377312814,1754337038512,-338.16,0.00025882,2]
[377312815,1754337038521,-1088.52884102,0.000275,2]
[377312816,1754337038531,-338.16,0.00027613,2]
[377312817,1754337038540,-5199.97,0.000279,4]
[377312818,1754337038549,-3200.0,0.000279,2]
[377312819,1754337038559,-849.35,0.00027921,2]
[377312820,1754337038570,-250.0,0.00028157,2]
[377312821,1754337038581,-178.26423767,0.00028217,2]
[377312822,1754337038593,-352.0,0.00028676,2]
[377312823,1754337038604,-582.87,0.00028677,2]
[377312824,1754337038614,-5638.75533,0.000288,2]
[377312825,1754337038624,-167.95,0.00028871,2]
[377312826,1754337038634,-876.34802226,0.00029007,2]
[377312828,1754337038643,-593.67232634,0.00029081,2]
[377312830,1754337038652,-692.13759711,0.00029081,2]
[377312832,1754337038662,-1213.0,0.0002909,3]
[377312834,1754337038671,-155.0,0.0002909,3]
[377312836,1754337038680,-12714.4468402,0.00029098,2]
[377312838,1754337038690,-191.63,0.00029108,2]
[377312840,1754337038700,-500.0,0.00029173,5]
[377312842,1754337038709,-338.16,0.00029343,2]
[377312844,1754337038719,-5638.75533,0.000298,2]
[377312845,1754337038728,-1510.24456072,0.0003,2]
[377312847,1754337038737,-250.82013568,0.00030028,2]
[377312849,1754337038747,-167.21342379,0.00030028,2]
[377312850,1754337038756,-200.0,0.000301,2]
[377312851,1754337038766,-157.24,0.00030137,2]
[377312852,1754337038775,-5638.75534,0.000308,2]
[377312854,1754337038786,-1274.44,0.00030877,14]
[377312856,1754337038796,-338.16,0.00031074,2]
[377312857,1754337038808,-666.0,0.00031093,3]
[377312858,1754337038819,-443.386,0.00031408,29]
[377312859,1754337038830,-2394.29574975,0.00031408,2]
[377312860,1754337038839,-5638.75533,0.000318,2]
[377312861,1754337038850,-5638.75534,0.000328,2]
[377312862,1754337038860,-338.16,0.00032804,2]
[377312863,1754337038871,-1000.0,0.00033,2]
[377312864,1754337038882,-14043.92,0.00033754,2]
[377312865,1754337038893,-962.71,0.00033788,120]
[377312866,1754337038905,-500.0,0.000338,5]
[377312867,1754337038915,-500.0,0.000338,5]
[377312868,1754337038926,-500.0,0.000338,5]
[377312869,1754337038936,-501.98329806,0.000338,5]
[377312870,1754337038946,-245.67955797,0.000338,5]
[377312871,1754337038955,-500.0,0.000338,5]
[377312872,1754337038966,-5638.75533,0.000338,2]
[377312873,1754337038975,-2933.33265563,0.00033896,2]
[377312874,1754337038985,-250.0,0.00034043,2]
[377312875,1754337038995,-191.63,0.00034338,2]
[377312876,1754337039005,-500.0,0.00034348,5]
[377312877,1754337039017,-1000.0,0.00034348,5]
[377312878,1754337039027,-500.0,0.00034348,5]
[377312879,1754337039037,-1000.0,0.00034348,5]
[377312880,1754337039047,-169.94,0.00034351,2]
[377312881,1754337039056,-338.16,0.00034534,2]
[377312882,1754337039068,-1000.0,0.0003457,2]
[377312883,1754337039078,-497.05717761,0.00034726,2]
[377312884,1754337039089,-878.82706609,0.00034896,5]
[377312885,1754337039098,-165.56,0.00035383,2]
[377312886,1754337039108,-180.94,0.00035993,2]
[377312887,1754337039118,-458.0,0.00036,2]
[377312888,1754337039128,-166.77888784,0.00036225,2]
[377312889,1754337039138,-338.16,0.00036265,2]
[377312890,1754337039148,-2933.33265563,0.00036325,2]
[377312891,1754337039158,-175.0,0.00036499,7]
[377312892,1754337039168,-167.77,0.00036551,2]
[377312893,1754337039178,-6932.03072374,0.0003666,2]
[377312894,1754337039187,-457.0,0.00037,30]
[377312895,1754337039197,-338.16,0.00037995,2]
[377312896,1754337039206,-962.71,0.00038012,120]
[377312897,1754337039215,-20454.23808789,0.00038092,2]
[377312898,1754337039224,-500.0,0.00038273,5]
[377312899,1754337039234,-500.0,0.00038273,5]
[377312900,1754337039243,-500.0,0.00038273,5]
[377312901,1754337039252,-500.0,0.00038273,5]
[377312902,1754337039261,-500.0,0.00038273,5]
[377312903,1754337039271,-22046.891222,0.00038281,3]
[377312904,1754337039281,-191.63,0.00038282,2]
[377312905,1754337039291,-841.24591755,0.00038291,3]
[377312906,1754337039300,-251.025827,0.00038292,7]
[377312907,1754337039309,-151.0,0.00038292,7]
[377312908,1754337039319,-236.803326,0.00038292,7]
[377312909,1754337039328,-151.0,0.00038292,7]
[377312910,1754337039337,-151.0,0.00038292,7]
[377312911,1754337039346,-151.0,0.00038292,7]
[377312912,1754337039355,-151.0,0.00038292,7]
[377312913,1754337039365,-280.53873,0.00038292,7]
[377312914,1754337039376,-280.53873,0.00038292,7]
[377312915,1754337039385,-280.53873,0.00038292,7]
[377312916,1754337039396,-280.53873,0.00038292,7]
[377312917,1754337039689,-151.0,0.00038292,7]
[377312918,1754337039699,-151.0,0.00038292,7]
[377312919,1754337039709,-151.0,0.00038292,7]
[377312920,1754337039719,-151.0,0.00038292,7]
[377312921,1754337039730,-151.0,0.00038292,7]
[377312922,1754337039739,-151.0,0.00038292,7]
[377312923,1754337039749,-151.0,0.00038292,7]
[377312924,1754337039758,-151.0,0.00038292,7]
[377312925,1754337039767,-151.0,0.00038292,7]
[377312926,1754337039776,-151.0,0.00038292,7]
[377312927,1754337039786,-151.0,0.00038292,7]
[377312928,1754337039796,-151.0,0.00038292,7]
[377312929,1754337039805,-151.0,0.00038292,7]
[377312930,1754337039814,-151.0,0.00038292,7]
[377312931,1754337039823,-151.0,0.00038292,7]
[377312932,1754337039833,-214.322275,0.00038292,7]
[377312933,1754337039842,-151.0,0.00038292,7]
[377312934,1754337039852,-151.0,0.00038292,7]
[377312935,1754337039861,-151.0,0.00038292,7]
[377312936,1754337039871,-151.0,0.00038292,7]
[377312937,1754337039880,-151.0,0.00038292,7]
[377312938,1754337039890,-238.34895,0.00038292,7]
[377312939,1754337039900,-151.0,0.00038292,7]
[377312940,1754337039909,-151.0,0.00038292,7]
[377312941,1754337039919,-237.187367,0.00038292,7]
[377312942,1754337039929,-237.187367,0.00038292,7]
[377312943,1754337039938,-151.0,0.00038292,7]
[377312944,1754337039949,-179.351974,0.00038292,7]
[377312945,1754337039959,-237.187367,0.00038292,7]
[377312946,1754337039969,-237.187367,0.00038292,7]
[377312947,1754337039979,-151.0,0.00038292,7]
[377312948,1754337039988,-151.0,0.00038292,7]
[377312949,1754337039997,-152.457873,0.00038292,7]
[377312950,1754337040007,-151.0,0.00038292,7]
[377312951,1754337040021,-151.0,0.00038292,7]
[377312952,1754337040031,-151.0,0.00038292,7]
[377312953,1754337040040,-151.0,0.00038292,7]
[377312954,1754337040050,-151.0,0.00038292,7]
[377312955,1754337040059,-8028.9340693,0.00038292,7]
[377312956,1754337040069,-3757.48258702,0.00038292,7]
[377312957,1754337040078,-22487.22433035,0.00038292,2]
[377312958,1754337040088,-2289.36473249,0.00038292,10]
[377312959,1754337040097,-1000.0,0.00038292,10]
[377312960,1754337040108,-4992.45530491,0.00038292,2]
[377312961,1754337040118,-14995.02458424,0.00038292,3]
[377312962,1754337040128,-25704.47092434,0.00038292,7]
[377312963,1754337040138,-10657.64038446,0.00038292,2]
[377312964,1754337040147,-15048.10270247,0.00038292,2]
[377312965,1754337040157,-491.60430917,0.00038292,3]
[377312966,1754337040167,-6000.0,0.00038292,2]
[377312967,1754337040176,-1481.44501991,0.00038292,2]
[377312968,1754337040186,-3079.68059975,0.00038292,2]
[377312969,1754337040195,-3349.7824339,0.00038292,2]
[377312970,1754337040205,-7827.27146799,0.00038292,2]
[377312971,1754337040215,-374.12499089,0.00038292,120]
[377312972,1754337040226,-7632.54809146,0.00038292,2]
[377312973,1754337040236,-1717.16931209,0.00038292,2]
[377312974,1754337040246,-6735.15334086,0.00038292,7]
[377312976,1754337040255,-24971.07128686,0.00038292,5]
[377312977,1754337040265,-182.05473,0.00038301,7]
[377312978,1754337040275,-182.05473,0.00038301,7]
[377312979,1754337040285,-182.05473,0.00038301,7]
[377312981,1754337040294,-182.05473,0.00038301,7]
[377312983,1754337040304,-151.0,0.00038301,7]
[377312984,1754337040314,-151.0,0.00038301,7]
[377312985,1754337040324,-151.0,0.00038301,7]
[377312986,1754337040333,-151.0,0.00038301,7]
[377312989,1754337040343,-151.0,0.00038301,7]
[377312990,1754337040353,-151.0,0.00038301,7]
[377312991,1754337040363,-151.0,0.00038301,7]
[377312992,1754337040372,-151.0,0.00038301,7]
[377312993,1754337040381,-151.0,0.00038301,7]
[377312994,1754337040390,-151.0,0.00038301,7]
[377312995,1754337040400,-151.0,0.00038301,7]
[377312996,1754337040410,-151.0,0.00038301,7]
[377312997,1754337040420,-241.166098,0.00038301,7]
[377312998,1754337040431,-151.0,0.00038302,7]
[377312999,1754337040442,-151.0,0.00038302,7]
[377313000,1754337040452,-151.0,0.00038302,7]
[377313001,1754337040462,-151.0,0.00038302,7]
[377313002,1754337040473,-151.0,0.00038302,7]
[377313003,1754337040482,-731.811721,0.00038302,7]
[377313004,1754337040491,-151.0,0.00038302,7]
[377313005,1754337040501,-731.811721,0.00038302,7]
[377313006,1754337040510,-268.724597,0.00038302,7]
[377313007,1754337040519,-151.0,0.00038302,7]
[377313008,1754337040529,-151.0,0.00038302,7]
[377313009,1754337040538,-151.0,0.00038302,7]
[377313010,1754337040548,-151.0,0.00038302,7]
[377313011,1754337040557,-151.0,0.00038302,7]
[377313012,1754337040566,-151.0,0.00038302,7]
[377313013,1754337040576,-151.0,0.00038302,7]
[377313014,1754337040585,-151.0,0.00038302,7]
[377313015,1754337040595,-157.55,0.00038302,7]
[377313016,1754337040604,-157.55,0.00038302,7]
[377313017,1754337040614,-151.0,0.00038302,7]
[377313018,1754337040624,-157.24,0.00038356,2]
[377313019,1754337040633,-500.0,0.00038373,5]
[377313020,1754337040642,-151.0,0.00038373,14]
[377313021,1754337040652,-3000.0,0.00038748,31]
[377313022,1754337040661,-2933.33265563,0.00038754,2]
[377313023,1754337040671,-150.0,0.000388,2]
[377313024,1754337040680,-308.13420017,0.0003882,15]
[377313025,1754337040692,-500.0,0.0003882,15]
[377313026,1754337040702,-500.0,0.0003882,15]
[377313027,1754337040712,-967.18064997,0.00038821,5]
[377313028,1754337040722,-1000.0,0.00038821,5]
[377313029,1754337040731,-500.0,0.00038821,5]
[377313030,1754337040741,-1003.5126455,0.00038821,5]
[377313031,1754337040750,-1000.0,0.00038891,2]
[377313032,1754337040760,-561.87851075,0.00038932,2]
[377313033,1754337040769,-151.0,0.00038977,14]
[377313034,1754337040778,-151.0,0.00038977,14]
[377313035,1754337040788,-731.811721,0.00038977,14]
[377313036,1754337040797,-731.811721,0.00038977,14]
[377313037,1754337040807,-151.0,0.00038977,14]
[377313038,1754337040816,-151.0,0.00038977,14]
[377313039,1754337040825,-151.0,0.00038977,14]
[377313040,1754337040834,-151.0,0.00038977,14]
[377313041,1754337040844,-151.0,0.00038977,14]
[377313042,1754337040853,-151.0,0.00038977,14]
[377313043,1754337040863,-716.11967056,0.00039064,2]
[377313044,1754337040873,-166.77888784,0.00039189,2]
[377313045,1754337040882,-870.36083038,0.00039197,2]
[377313046,1754337040891,-500.0,0.000392,5]
[377313047,1754337040901,-151.0,0.000393,14]
[377313048,1754337040911,-1024.60199019,0.00039329,2]
[377313049,1754337040920,-1000.0,0.00039368,5]
[377313050,1754337040930,-1178.84315001,0.00039461,2]
[377313051,1754337040939,-160.0,0.00039469,2]
[377313052,1754337040949,-20454.23808787,0.00039571,2]
[377313053,1754337040958,-180.94,0.00039592,2]
[377313054,1754337040967,-1333.08430982,0.00039593,2]
[377313055,1754337040977,-151.0,0.00039725,14]
[377313056,1754337040986,-151.0,0.00039725,14]
[377313057,1754337040995,-152.793126,0.00039725,14]
[377313058,1754337041005,-151.0,0.00039725,14]
[377313059,1754337041019,-151.0,0.00039725,14]
[377313060,1754337041028,-151.0,0.00039725,14]
[377313061,1754337041038,-157.601212,0.00039725,14]
[377313062,1754337041047,-157.601212,0.00039725,14]
[377313063,1754337041058,-151.0,0.00039725,14]
[377313064,1754337041068,-157.55,0.00039725,14]
[377313065,1754337041077,-157.55,0.00039725,14]
[377313066,1754337041087,-151.0,0.00039725,14]
[377313067,1754337041097,-338.16,0.00039725,2]
[377313068,1754337041107,-1487.32546963,0.00039726,2]
[377313069,1754337041116,-1641.56662945,0.00039858,2]
[377313070,1754337041125,-500.0,0.000399,14]
[377313071,1754337041135,-150.0,0.00039973,3]
[377313072,1754337041145,-180.56668168,0.00039973,5]
[377313073,1754337041154,-150.0,0.00039973,5]
[377313074,1754337041163,-500.0,0.00039973,5]
[377313075,1754337041173,-1098.74452881,0.00039989,30]
[377313076,1754337041182,-151.0,0.00039989,14]
[377313077,1754337041192,-151.0,0.0003999,14]
[377313078,1754337041201,-151.0,0.0003999,14]
[377313079,1754337041211,-151.0,0.0003999,14]
[377313080,1754337041221,-182.05473,0.0003999,14]
[377313081,1754337041230,-182.05473,0.0003999,14]
[377313082,1754337041239,-151.0,0.0003999,14]
[377313083,1754337041249,-151.0,0.0003999,14]
[377313084,1754337041258,-203.933035,0.0003999,14]
[377313085,1754337041268,-151.0,0.0003999,14]
[377313086,1754337041277,-151.0,0.0003999,14]
[377313087,1754337041286,-153.617651,0.0003999,14]
[377313088,1754337041295,-233.800477,0.0003999,14]
[377313089,1754337041304,-151.0,0.0003999,14]
[377313090,1754337041314,-152.817705,0.0003999,14]
[377313091,1754337041323,-280.53873,0.0003999,14]
[377313092,1754337041333,-280.53873,0.0003999,14]
[377313093,1754337041343,-151.0,0.0003999,14]
[377313094,1754337041352,-151.0,0.0003999,14]
[377313095,1754337041362,-151.0,0.0003999,14]
[377313096,1754337041372,-151.0,0.0003999,14]
[377313097,1754337041382,-237.450864,0.0003999,14]
[377313098,1754337041392,-151.0,0.0003999,14]
[377313099,1754337041401,-151.0,0.0003999,14]
[377313100,1754337041411,-151.0,0.0003999,14]
[377313101,1754337041423,-110234.45611,0.0003999,3]
[377313102,1754337041434,-151.0,0.0003999,14]
[377313103,1754337041444,-151.0,0.0003999,14]
[377313104,1754337041455,-5691.91582817,0.0003999,3]
[377313105,1754337041465,-237.187367,0.0003999,14]
[377313106,1754337041476,-237.187367,0.0003999,14]
[377313107,1754337041485,-1795.80778927,0.0003999,2]
[377313108,1754337041495,-154.867533,0.0003999,14]
[377313109,1754337041508,-151.0,0.0003999,14]
[377313110,1754337041518,-151.0,0.0003999,14]
[377313111,1754337041527,-151.0,0.0003999,14]
[377313112,1754337041537,-731.811721,0.00039999,14]
[377313113,1754337041546,-731.811721,0.00039999,14]
[377313114,1754337041556,-1523.50262944,0.0004,2]
[377313115,1754337041565,-464.04557269,0.0004,2]
[377313116,1754337041574,-198853.61229667,0.0004,120]
[377313117,1754337041583,-162.72222168,0.0004,120]
[377313118,1754337041592,-407.07572333,0.0004,120]
[377313119,1754337041601,-151.0,0.0004,14]
[377313120,1754337041611,-151.0,0.0004,14]
[377313121,1754337041620,-151.0,0.0004,14]
[377313122,1754337041629,-151.0,0.0004,14]
[377313123,1754337041638,-159.691576,0.0004,14]
[377313124,1754337041648,-182.05473,0.0004,14]
[377313125,1754337041657,-182.05473,0.0004,14]
[377313126,1754337041667,-151.0,0.0004,14]
[377313127,1754337041676,-731.811721,0.0004,14]
[377313128,1754337041686,-731.811721,0.0004,14]
[377313129,1754337041695,-151.0,0.0004,14]
[377313130,1754337041705,-281.150324,0.0004,14]
[377313131,1754337041715,-157.601212,0.0004,14]
[377313132,1754337041724,-157.601212,0.0004,14]
[377313133,1754337041734,-151.0,0.0004,14]
[377313134,1754337041743,-154.868797,0.0004,14]
[377313135,1754337041754,-151.0,0.0004,14]
[377313136,1754337041764,-151.0,0.0004,14]
[377313137,1754337041774,-280.53873,0.0004,14]
[377313138,1754337041785,-280.53873,0.0004,14]
[377313139,1754337041795,-151.0,0.0004,14]
[377313140,1754337041804,-151.0,0.0004,14]
[377313141,1754337041815,-151.0,0.0004,14]
[377313142,1754337041824,-157.55,0.0004,14]
[377313143,1754337041834,-157.55,0.0004,14]
[377313144,1754337041844,-151.0,0.0004,14]
[377313145,1754337041853,-151.0,0.0004,14]